Cogmind - Beta 10.2 @@@ ROGUE MODE // 2021.09.01 @ 17:51:01 Player: aes256thetic Result: Self-destructed Performance ------------- Evolutions (1) 500 Regions Visited (4) 800 Robots Destroyed (31) 155 Value Destroyed (793) 793 Prototype IDs (4) 80 Alien Tech Used (0) 0 Bonus (0) 0 TOTAL SCORE: 2328 Bonus ------- None Cogmind --------- Core Integrity 115/400 Matter 270/300 Energy 250/250 System Corruption 0% Temperature Cool (0) Movement Core (650) Ox12 Location -9/Mines Parts ------- > --- POWER (1) -------- Ion Engine > --- PROPULSION (2) --- (None) > --- UTILITY (3) ------ Large Storage Unit Light Armor Plating Sensor Drone Bay (0/20) > --- WEAPON (3) ------- (None) > --- INVENTORY (10) --- Small Storage Unit Power Shielding Peak State ------------ > --- POWER ------------ Light Nuclear Core > --- PROPULSION ------- Wheel Compact Wheel > --- UTILITY ---------- Improved Heat Sink Large Storage Unit Experimental Sensor Array > --- WEAPON ----------- EM Pulse Gun Medium Laser Light Cannon > --- INVENTORY -------- Ion Engine Light Nuclear Core Small Storage Unit Light Armor Plating Sensor Drone Bay Grenade Launcher [Rating: 19] Favorites ----------- Power Ion Engine Engine Ion Engine Power Core Light Nuclear Core Propulsion Light Treads Treads Light Treads Leg Aluminum Leg Wheel Compact Wheel Utility Large Storage Unit Device Experimental Sensor Array Storage Large Storage Unit Protection Light Armor Plating Weapon Assault Rifle Energy Gun Medium Laser Energy Cannon Light EM Pulse Cannon Ballistic Gun Assault Rifle Ballistic Cannon Light Cannon Launcher Grenade Launcher Build | -11 -10 -10 -9 -9 ------- Run | Scr Mat Min Mat Min Slots Evolved 2 | . . . 2 . Power . | . . . . . Propulsion . | . . . . . Utility 1 | . . . 1 . Weapon 1 | . . . 1 . Parts Attached 27 | 6 2 8 8 3 Power 5 | 1 . 2 1 1 Engine 3 | 1 . 1 . 1 Core 2 | . . 1 1 . Reactor . | . . . . . Propulsion 6 | 2 . 4 . . Treads 2 | 2 . . . . Leg 2 | . . 2 . . Wheel 2 | . . 2 . . Hover . | . . . . . Flight . | . . . . . Utility 7 | 1 2 1 1 2 Device 3 | . . 1 1 1 Storage 3 | 1 2 . . . Processor . | . . . . . Hackware . | . . . . . Protection 1 | . . . . 1 Artifact . | . . . . . Weapon 9 | 2 . 1 6 . Energy Gun 3 | . . 1 2 . Energy Cannon 1 | . . . 1 . Ballistic Gun 2 | 2 . . . . Ballistic Cannon 1 | . . . 1 . Launcher 2 | . . . 2 . Special Weapon . | . . . . . Impact Weapon . | . . . . . Slashing Weapon . | . . . . . Piercing Weapon . | . . . . . Special Melee Weapon . | . . . . . Unidentified Prototypes 2 | . . 1 . 1 Parts Lost 14 | . . 2 12 . Power 2 | . . . 2 . Propulsion 2 | . . . 2 . Utility 2 | . . . 2 . Weapon 8 | . . 2 6 . Highest Loss Streak 10 | . . 1 10 . Average Slot Usage (%) 86 | . 86 99 87 42 Engine 10 | . 14 12 . 10 Core 2 | . . 1 10 . Treads 17 | . 28 20 . . Wheel 5 | . . 6 15 . Device 9 | . . 11 20 10 Storage 14 | . 15 15 11 11 Protection 1 | . . . . 10 Energy Gun 4 | . . 4 15 . Ballistic Gun 18 | . 28 23 . . Ballistic Cannon 1 | . . . 9 . Naked Turns . | . . . . . Heaviest Build 38 | 13 29 29 31 38 Greatest Support 40 | 40 40 40 26 3 Greatest Overweight (x) 12 | . . 2 8 12 Average Overweight (x) . | . . . 1 11 Largest Inventory Capacity 12 | 6 12 12 10 10 Average Capacity 8 | 5 6 10 10 10 Most Carried 10 | 4 7 10 8 5 Average Carried 6 | 3 5 8 6 2 Final Capacity 12 | 6 12 10 10 10 Final Carried 9 | 4 6 9 5 2 Class Distribution -------------------- 89% | Mutant 10% | Skirmisher Dominant Class ---------------- Mutant | -10/Materials Mutant | -10/Mines Skirmisher | -9/Materials Mutant | -9/Mines Resources | -11 -10 -10 -9 -9 ----------- Run | Scr Mat Min Mat Min Matter Collected 666 | 211 133 206 116 . Remotely . | . . . . . Salvage Created 929 | . 210 347 372 . Parts 78 | . 17 26 35 . Haulers Intercepted . | . . . . . Recyclers Shooed . | . . . . . Parts Field Recycled . | . . . . . Retrieved Matter . | . . . . . Parts Self-Destructed . | . . . . . Prevented . | . . . . . Kills | -11 -10 -10 -9 -9 ------- Run | Scr Mat Min Mat Min Combat Hostiles Destroyed 29 | . 6 10 13 . Guns 19 | . 6 10 3 . Cannons 6 | . . . 6 . AOE 4 | . . . 4 . Classes Destroyed 5 | . 3 . 2 . Recycler 1 | . . . 1 . Watcher 1 | . 1 . . . Swarmer 13 | . 3 3 7 . Grunt 14 | . 3 7 4 . Sentry 2 | . . . 2 . Best Kill Streak 5 | . 3 4 5 . Combat Bots Only 5 | . 3 4 5 . Max Kills in Single Turn 3 | . 1 2 3 . Gunslinging 1 | . . 1 . . Exploded 3 | . . . 3 . Melee . | . . . . . Uniques/NPCs Destroyed . | . . . . . Combat | -11 -10 -10 -9 -9 -------- Run | Scr Mat Min Mat Min Damage Taken 1743 | . 296 408 1039 . Core 417 | . 41 91 285 . Absorbed by Shields . | . . . . . Core Remaining (%) 73 | 100 . 47 . . Volleys Fired 59 | . 15 22 22 . Largest 3 | . 2 2 3 . Hottest 125 | . 40 70 125 . Shots Fired 120 | . 30 42 48 . Gun 92 | . 30 42 20 . Cannon 26 | . . . 26 . Launcher 2 | . . . 2 . Special . | . . . . . Kinetic 80 | . 30 36 14 . Thermal 16 | . . 6 10 . Explosive 2 | . . . 2 . Electromagnetic 22 | . . . 22 . Robot Hit Streak 16 | . 13 16 9 . Robot Miss Streak 4 | . 2 2 4 . Penetration Max . | . . . . . Secondary Targets 1 | . . 1 . . Max Gunslinging Chain 1 | . . 1 . . Shots Hit Robots 74 | . 22 32 20 . Core Hits 45 | . 11 17 17 . Critical Hits 1 | . 1 . . . Critical Kills . | . . . . . Critical Parts Destroyed 1 | . 1 . . . Melee Attacks . | . . . . . Impact . | . . . . . Slashing . | . . . . . Piercing . | . . . . . Sneak Attacks . | . . . . . Combat Hostiles . | . . . . . Follow-up Attacks . | . . . . . Damage Inflicted 1289 | . 253 400 636 . Guns 749 | . 253 400 96 . Cannons 354 | . . . 354 . Explosions 186 | . . . 186 . Melee . | . . . . . Ramming . | . . . . . Kinetic 716 | . 253 339 124 . Thermal 99 | . . 61 38 . Explosive 186 | . . . 186 . Electromagnetic 288 | . . . 288 . Impact . | . . . . . Slashing . | . . . . . Piercing . | . . . . . Highest Corruption . | . . . . . Average Corruption . | . . . . . Corruption Purged . | . . . . . Overload Shots . | . . . . . Overflow Damage . | . . . . . Projectiles . | . . . . . Explosions . | . . . . . Melee . | . . . . . Knockbacks . | . . . . . Impact . | . . . . . Kinetic . | . . . . . Secondary . | . . . . . Self-Inflicted Damage 74 | . . . 74 . Shots 2 | . . . 2 . Rammed . | . . . . . Targets Rammed . | . . . . . Kicked . | . . . . . Crushed . | . . . . . Highest Temperature 61 | . 2 61 36 . Average Temperature 12 | . 2 15 10 . Received Heat Transfer 582 | . 99 183 300 . Siege Activations . | . . . . . Robots Corrupted . | . . . . . Combat Hostiles . | . . . . . Parts Fried 2 | . . . 2 . Impact Corruptions . | . . . . . Robots Melted . | . . . . . Combat Hostiles . | . . . . . Parts Melted 1 | . . 1 . . Heat Transferred 284 | . . 185 99 . Parts Sabotaged . | . . . . . Parts Stolen . | . . . . . Parts Stripped . | . . . . . Power Chain Reactions . | . . . . . Missiles Intercepted . | . . . . . Alert | -11 -10 -10 -9 -9 ------- Run | Scr Mat Min Mat Min Peak Influence 389 | . 222 163 389 143 Initial 143 | . . 33 52 143 Average 116 | . 106 113 171 143 Maximum Alert Level 1 | . 1 . 1 . Low Security (%) 88 | 100 81 100 60 100 Level 1 11 | . 18 . 39 . Level 2 . | . . . . . Level 3 . | . . . . . Level 4 . | . . . . . Level 5 . | . . . . . High Security . | . . . . . Max Security . | . . . . . Squads Dispatched 4 | . 1 . 3 . Investigation 1 | . . . 1 . Extermination . | . . . . . Reinforcement 3 | . 1 . 2 . Assault . | . . . . . Garrison . | . . . . . Intercept . | . . . . . Construction Impeded . | . . . . . Haulers Reinforced . | . . . . . Stealth | -11 -10 -10 -9 -9 --------- Run | Scr Mat Min Mat Min Distress Signals 2 | . 2 . . . Communications Jammed . | . . . . . Distress Signals . | . . . . . Times Spotted 46 | . 13 13 20 . Peak Tracking Total 8 | . 5 3 8 . Tactical Retreats 6 | . 2 2 2 . Traps | -11 -10 -10 -9 -9 ------- Run | Scr Mat Min Mat Min Traps Triggered . | . . . . . Indirectly . | . . . . . Trap Hack Attempts . | . . . . . Triggered . | . . . . . Disarmed . | . . . . . Reprogrammed . | . . . . . Reused . | . . . . . Traps Extracted . | . . . . . Installed . | . . . . . Triggered . | . . . . . Machines | -11 -10 -10 -9 -9 ---------- Run | Scr Mat Min Mat Min Machines Disabled 1 | . . . 1 . Max in Single Turn 1 | . . . 1 . Machines Sabotaged . | . . . . . Garrisons Compromised . | . . . . . Overloaded Fab Kills . | . . . . . Fab Network Shutdowns . | . . . . . Hacking | -11 -10 -10 -9 -9 --------- Run | Scr Mat Min Mat Min Machines Accessed 6 | . 3 2 1 . Terminals 5 | . 3 1 1 . Fabricators . | . . . . . Repair Stations . | . . . . . Recycling Units . | . . . . . Scanalyzers . | . . . . . Garrison Access . | . . . . . Total Hacks 18 | . 11 4 3 . Successful 11 | . 7 1 3 . Failed 7 | . 4 3 . . Catastrophic 1 | . 1 . . . Database Lockouts . | . . . . . Manual . | . . . . . Terminals 17 | . 11 3 3 . Fabricators . | . . . . . Repair Stations . | . . . . . Recycling Units . | . . . . . Scanalyzers . | . . . . . Garrison Access . | . . . . . Terminal Hacks 11 | . 7 1 3 . Prototype ID Bank 1 | . 1 . . . Open Door 1 | . . 1 . . Emergency Access Points 1 | . 1 . . . Locate Traps 3 | . 2 . 1 . Security Status 1 | . . . 1 . Transport Status 1 | . 1 . . . Registered Components 2 | . 1 . 1 . Registered Prototypes 1 | . 1 . . . Fabricator Hacks . | . . . . . Repair Station Hacks . | . . . . . Recycling Unit Hacks . | . . . . . Scanalyzer . | . . . . . Garrison Access Hacks . | . . . . . Unauthorized Hacks . | . . . . . Terminals . | . . . . . Fabricators . | . . . . . Repair Stations . | . . . . . Recycling Units . | . . . . . Scanalyzers . | . . . . . Garrison Access . | . . . . . Data Cores Recovered . | . . . . . Used . | . . . . . Hacking Detections 5 | . 3 1 1 . Full Trace Events 1 | . . . 1 . Feedback Events . | . . . . . Feedback Blocked . | . . . . . Robot Schematics Acquired . | . . . . . Robots Built . | . . . . . Matter . | . . . . . Time . | . . . . . Total Robot Build Rating . | . . . . . Part Schematics Acquired . | . . . . . Parts Built . | . . . . . Matter . | . . . . . Time . | . . . . . Total Part Build Rating . | . . . . . Parts Repaired . | . . . . . Time . | . . . . . Parts Recycled . | . . . . . Recycled Matter . | . . . . . Retrieved Matter . | . . . . . Retrieved Components . | . . . . . Parts Scanalyzed . | . . . . . Part Schematics Acquired . | . . . . . Parts Damaged . | . . . . . Bothacking | -11 -10 -10 -9 -9 ------------ Run | Scr Mat Min Mat Min Used RIF Installer . | . . . . . Robots Hacked . | . . . . . Non-combat . | . . . . . Combat . | . . . . . Robot Hacks Applied . | . . . . . Relay Couplers Released . | . . . . . Robots Rewired . | . . . . . Allies Hacked . | . . . . . Hacks Repelled . | . . . . . Allies | -11 -10 -10 -9 -9 -------- Run | Scr Mat Min Mat Min Total Allies . | . . . . . Largest Group . | . . . . . Highest-Rated Group . | . . . . . Highest-Rated Ally . | . . . . . Total Orders . | . . . . . Ally Attacks . | . . . . . Total Damage . | . . . . . Kills . | . . . . . Allies Corrupted . | . . . . . Allies Melted . | . . . . . Intel | -11 -10 -10 -9 -9 ------- Run | Scr Mat Min Mat Min Robot Analysis Total . | . . . . . Derelict Logs Recovered . | . . . . . Drone Launches 20 | . . . . 20 Drone Recoveries . | . . . . . Exploration | -11 -10 -10 -9 -9 ------------- Run | Scr Mat Min Mat Min Turns Passed 1917 | 122 561 716 304 214 Spaces Moved 1056 | 64 310 445 203 34 Core 43 | 2 . . 7 34 Treads 654 | 62 310 282 . . Legs 14 | . . 14 . . Wheels 345 | . . 149 196 . Hover . | . . . . . Flight . | . . . . . Fastest Speed 50 | 50 160 90 100 300 Average Speed 155 | 156 160 136 112 619 Slowest Speed 650 | 160 160 180 450 650 Overloaded Moves . | . . . . . Propulsion Burnouts . | . . . . . Robots Hopped . | . . . . . Cave-ins Triggered . | . . . . . Exploration Rate (%) 31 | 5 44 75 26 9 Regions Visited 4 Branch Regions 2 Pre-discovered Areas . | . . . . . Known Exits Taken . | . . . . . Unknown Exits Taken 4 | 1 1 1 1 . Scrap Searched 1 | . . 1 . . Spaces Dug . | . . . . . Terrain Destroyed 48 | . . . 48 . Melee . | . . . . . Projectile . | . . . . . AOE 48 | . . . 48 . Terrain Rammed . | . . . . . Walls Destroyed . | . . . . . Machines Disabled . | . . . . . Actions | -11 -10 -10 -9 -9 --------- Run | Scr Mat Min Mat Min Total 1219 | 83 345 514 240 37 Wait 52 | 9 16 23 4 . Move 1052 | 63 309 444 202 34 Hop . | . . . . . Pick Up 17 | 5 2 8 2 . Fast Attach 9 | 5 1 2 1 . Attach 16 | 1 . 5 7 3 Detach 3 | . . 2 1 . Swap 2 | . 1 1 . . Drop 8 | . 1 7 . . Fire 59 | . 15 22 22 . Melee . | . . . . . Ram . | . . . . . Kick . | . . . . . Crush . | . . . . . Escape Stasis . | . . . . . Rewire 1 | . . . 1 . Trap . | . . . . . Miscellaneous . | . . . . . Route ------- -11/Scrapyard -10/Materials (discovered 2 exits: *Mat / *Min) -10/Mines -9/Materials -9/Mines History --------- Turn | Location | Event 29 | -11/Scrapyard | Discovered new exit (range 15) 123 | -11/Scrapyard | Entered Materials 314 | -10/Materials | Build established: Mutant 453 | -10/Materials | Discovered new exit (range 14) 503 | -10/Materials | Discovered new exit (range 14) 684 | -10/Materials | Entered Mines 785 | -10/Mines | Found a damaged Exp. Sensor Array with a note attached 788 | -10/Mines | Found Prototype Device 790 | -10/Mines | Identified Exp. Sensor Array 1284 | -10/Mines | Found the Drone Emporium 1287 | -10/Mines | Found Prototype Device 1370 | -10/Mines | Discovered new exit (range 7) 1394 | -10/Mines | Core integrity fell below 50% 1400 | -10/Mines | Entered Materials 1400 | -9/Materials | Evolved 2 slots: Utility x1, Weapon x1 1628 | -9/Materials | Discovered new exit (range 7) 1690 | -9/Materials | Core integrity fell below 50% 1704 | -9/Materials | Entered Mines 1713 | -9/Mines | Identified Sensor Drone Bay 1733 | -9/Mines | Lost 10 parts (2p1n2u5w) 1918 | -9/Mines | Self-destructed Last Messages --------------- 01683_ K-01 Serf collects debris. 01684_ R-06 Scavenger collects Heat Sink. 01685_ G-34 Mercenary destroyed. 01687_ Lgt. EM Pulse Cannon destroyed. 01687_ R-06 Scavenger collects Aluminum Leg. 01688_ K-01 Serf collects debris. 01691_ R-06 Scavenger collects Lgt. Armor Plating. 01692_ K-01 Serf collects debris. 01693_ U-05 Engineer lays Concrete. 01699_ Critical hit. 01699_ Imp. Heat Sink destroyed. 01700_ K-01 Serf collects debris. 01702_ Lgt. Nuclear Core destroyed. 01703_ K-01 Serf collects debris. 01704_ U-05 Engineer builds a Door. LOCATION=UNKNOWN GOAL=ESCAPE 01713_ Identified Sensor Drone Bay. 01715_ Sensor Drone released from Sensor Drone Bay. 01796_ K-01 Serf collects debris. Map ----- +----------------------------------------------------+ | | | | | | | | | | | | | | | | | | | | | | | | | | | ?????????????????????????????????????????????????? | | ?????????????????????????????????????????????????? | | ??????????????????########???????????????????????? | | ???????########??## #???????????????????????? | | ???????# ##?# ######????????????g?????? | | ???????# ! #?# #???????????g??????? | | ???????# !!!! #?## #### #??????????g???????? | | ???????# !!!! #### n n ##??????????????????????? | | ???????# !!!! nnn ##?????????????????????? | | ???????# nnnnnn #?????????????????????? | | ???????#### #####nn nnn ## ## #???????????????? | | ?????????# ##???###nnn #???????????? | | ?????????# #??????##n @######### #???????????? | | ?????????# #???????#####??????????????????????? | | ?????????## ##??????????????????????????????????? | | ??????????####???????????????????????????????????? | | ?????????????????????????????????????????????????? | | ??????????????????????????????????u??????????????? | | ?????????g???????????????????????????????????????? | | ?????????????????????????????????????????????????? | | ?????????g???????????????????????????????????????? | | ?????????????????????????????????????????????????? | | ?????????????????????????????????????????????????? | | ?????????????????????????????????????????????????? | | ?????????????????????????????????????????????????? | | ?????????????????????????????????????????????????? | | ?????????????????????????????????????????????????? | | ?????????????????????????????????????????????????? | | ??????????????????????????????r??????????????????? | | ??????????t??????????????????tk??????????????????? | | ?????????????????????????????????????????????????? | | ?????????????????????????????????????????????????? | | ?????????????????????????????????????????????????? | | ?????????????????????????????????????????????????? | | ?????????????????????????????????????????????????? | | ?????????????????????????????????????????????????? | | ?????????????????????????????????????????????????? | +----------------------------------------------------+ Best States ------------- Heat Dissipation 42 Energy Generation 14 Energy Capacity 250 Matter Stores 300 Matter Capacity 300 Sight Range 16 Robot Scan Range 30 Terrain Scan Density 10 Armor Coverage 150 Evasion (%) 42 Recoil Reduction 2 Item Schematics ----------------- None Robot Schematics ------------------ None Fabricated ------------ Nothing Alien Tech Used ----------------- None Achievements -------------- None Challenges ------------ None Game ------ Seed TargetParticleReconstructor Manual? 0 Play Time 00:18:26 Cumulative 12.5 hours Start 2021.09.01 @ 17:32:29 End 2021.09.01 @ 17:51:01 Sessions 1 Manual Loads 0 Difficulty Rogue Special Mode None Game No. 13 Rogue 13 Adventurer 0 Explorer 0 Win Type - Total 0 Types 0/0/0/0/0/0/0/0/0 Lore% 14 Gallery% 25 Achievement% 18 Wizard Run 0 Options --------- ASCII 0 Keyboard 1 Movement Vi Keybinds 0 Fullscreen 0 Font 20/Cog Map View 130x56 Tactical HUD 1 Map Filters NONE Filters NONE Steam 1 RUN: cf870431-8aac-416f-bb82-2a1948eaea32